fUST/lending_fUST_20240619
["ID","MTS","AMOUNT","RATE_DAILY","PERIOD"]
[329835290,1718729446903,-292.371505,0.00017667,2]
[329835291,1718729446913,-292.371505,0.00017667,2]
[329835292,1718729446923,-292.371505,0.0001794,2]
[329835294,1718729446934,-292.371505,0.0001794,2]
[329835295,1718729446943,-7.69317088,0.00019494,2]
[329835298,1718729446955,-38.19906713,0.00019494,2]
[329835299,1718729446965,-500.0,0.00019494,2]
[329835301,1718729446974,-142.82008953,0.00019494,2]
[329835303,1718729447076,-292.371505,0.00017667,2]
[329835304,1718729447085,-292.371505,0.00017669,2]
[329835305,1718729447094,-292.371505,0.00017669,2]
[329835306,1718729447104,-292.371505,0.0001794,2]
[329835307,1718729447113,-148.51398,0.0001794,2]
[329835309,1718729447124,-143.857519,0.0001794,2]
[329835311,1718729447133,-357.17991047,0.00019494,2]
[329835313,1718729447143,-501.71570806,0.00019494,2]
[329835315,1718729447152,-500.0,0.00019494,2]
[329835317,1718729447161,-500.0,0.00019494,2]
[329835319,1718729447170,-500.0,0.00019494,2]
[329835321,1718729447178,-500.0,0.00019494,2]
[329835323,1718729447188,-513.623679,0.00019494,2]
[329835325,1718729447197,-501.50568853,0.00019494,2]
[329835327,1718729447205,-500.0,0.00019494,2]
[329835329,1718729447214,-270.30439416,0.00019494,2]
[329835331,1718729447223,-500.0,0.00019494,2]
[329835333,1718729447233,-542.51113228,0.00019494,2]
[329835335,1718729447242,-500.0,0.00019494,2]
[329835337,1718729447251,-500.0,0.00019494,2]
[329835339,1718729447265,-396.3721719,0.00019494,2]
[329835341,1718729447275,-500.0,0.00019494,2]
[329835343,1718729447283,-502.05476015,0.00019494,2]
[329835345,1718729447292,-500.0,0.00019494,2]
[329835347,1718729447302,-502.28268633,0.00019494,2]
[329835349,1718729447311,-504.84252745,0.00019494,2]
[329835350,1718729447320,-500.0,0.00019494,2]
[329835351,1718729447330,-500.0,0.00019494,2]
[329835352,1718729447339,-500.0,0.00019494,2]
[329835354,1718729447349,-528.60008126,0.00019494,2]
[329835356,1718729447358,-500.0,0.00019494,2]
[329835358,1718729447368,-500.0,0.00019494,2]
[329835360,1718729447377,-502.63655886,0.00019494,2]
[329835362,1718729447387,-502.03495487,0.00019494,2]
[329835364,1718729447396,-500.0,0.00019494,2]
[329835366,1718729447405,-500.0,0.00019494,2]
[329835368,1718729447414,-501.6928506,0.00019494,2]
[329835370,1718729447423,-500.0,0.00019494,2]
[329835372,1718729447432,-500.0,0.00019494,2]
[329835374,1718729447441,-501.0837657,0.00019494,2]
[329835376,1718729447450,-505.05839281,0.00019494,2]
[329835377,1718729447459,-504.02124696,0.00019494,2]
[329835379,1718729447468,-500.0,0.00019494,2]
[329835381,1718729447478,-505.07106968,0.00019494,2]
[329835383,1718729447487,-507.19936618,0.00019494,2]
[329835385,1718729447496,-506.71961338,0.00019494,2]
[329835387,1718729447508,-500.76827521,0.00019494,2]
[329835389,1718729447518,-500.0,0.00019494,2]
[329835391,1718729447527,-500.0,0.00019494,2]
[329835392,1718729447536,-500.0,0.00019494,2]
[329835393,1718729447545,-500.0,0.00019494,2]
[329835394,1718729447555,-500.0,0.00019494,2]
[329835395,1718729447564,-500.50416299,0.00019494,2]
[329835396,1718729447573,-623.55,0.00019494,2]
[329835397,1718729447583,-500.0,0.00019494,2]
[329835398,1718729447593,-501.12617447,0.00019494,2]
[329835399,1718729447602,-503.23487463,0.00019494,2]
[329835400,1718729447612,-500.0,0.00019495,2]
[329835401,1718729447622,-151.0,0.00019496,2]
[329835402,1718729447632,-151.0,0.00019496,2]
[329835403,1718729447642,-151.0,0.00019496,2]
[329835404,1718729447651,-151.0,0.00019496,2]
[329835405,1718729447660,-151.0,0.00019496,2]
[329835406,1718729447669,-151.0,0.00019496,2]
[329835407,1718729447679,-154.855818,0.00019496,2]
[329835408,1718729447688,-167.80308,0.00019496,2]
[329835409,1718729447697,-167.80308,0.00019496,2]
[329835410,1718729447706,-167.80308,0.00019496,2]
[329835411,1718729447716,-167.80308,0.00019496,2]
[329835412,1718729447725,-500.0,0.00019497,2]
[329835413,1718729447735,-615.0147293,0.00019497,2]
[329835414,1718729447744,-500.0,0.00019497,2]
[329835415,1718729447755,-557.97,0.00019497,2]
[329835416,1718729447766,-502.72131537,0.00019497,2]
[329835417,1718729447776,-200.79,0.00019497,2]
[329835418,1718729447785,-500.0,0.00019497,2]
[329835419,1718729447795,-500.0,0.00019497,2]
[329835420,1718729447804,-500.0,0.00019497,2]
[329835421,1718729447814,-500.0,0.00019497,2]
[329835422,1718729447823,-500.0,0.00019497,2]
[329835423,1718729447832,-157.25337135,0.00019497,2]
[329835424,1718729447842,-500.0,0.00019497,2]
[329835425,1718729447851,-6238.89,0.00019541,2]
[329835426,1718729447861,-151.0,0.00019542,2]
[329835427,1718729447871,-167.80308,0.00019542,2]
[329835428,1718729447879,-167.80308,0.00019542,2]
[329835429,1718729447889,-1715.91,0.00019584,2]
[329835430,1718729447898,-728.25,0.00019584,2]
[329835431,1718729447908,-587.65,0.00019584,2]
[329835432,1718729447922,-580.64,0.00019584,2]
[329835433,1718729447931,-500.0,0.00019584,2]
[329835434,1718729447940,-1173.43,0.00019584,2]
[329835435,1718729447949,-500.0,0.00019584,2]
[329835436,1718729447959,-1320.98,0.00019676,2]
[329835437,1718729447970,-569.3,0.00019726,2]
[329835438,1718729447979,-500.0,0.00019768,2]
[329835439,1718729447988,-370.64567787,0.00019768,2]
[329835440,1718729448000,-500.0,0.00019768,2]
[329835441,1718729448015,-500.0,0.00019768,2]
[329835442,1718729448027,-151.0,0.00019768,2]
[329835443,1718729448036,-426.62860003,0.00019768,2]
[329835444,1718729448045,-607.31,0.00019768,2]
[329835445,1718729448054,-500.0,0.00019768,2]
[329835446,1718729448063,-500.0,0.00019768,2]
[329835447,1718729448072,-480.10099508,0.00019768,2]
[329835448,1718729448081,-505.83854385,0.00019768,2]
[329835449,1718729448090,-500.0,0.00019768,2]
[329835450,1718729448102,-500.0,0.00019768,2]
[329835451,1718729448111,-241.15586976,0.00019768,2]
[329835452,1718729448120,-216.61352034,0.00019768,2]
[329835453,1718729448130,-500.0,0.00019768,2]
[329835454,1718729448138,-500.0,0.00019768,2]
[329835455,1718729448147,-500.0,0.00019768,2]
[329835456,1718729448156,-500.0,0.00019768,2]
[329835457,1718729448165,-500.0,0.00019768,2]
[329835458,1718729448174,-500.0,0.00019768,2]
[329835459,1718729448183,-500.0,0.00019768,2]
[329835460,1718729448191,-500.0,0.00019768,2]
[329835461,1718729448201,-500.0,0.00019768,2]
[329835462,1718729448210,-532.25614218,0.00019768,2]
[329835463,1718729448219,-500.0,0.00019768,2]
[329835464,1718729448229,-500.0,0.00019768,2]
[329835465,1718729448240,-500.0,0.00019768,2]
[329835466,1718729448250,-500.0,0.00019768,2]
[329835467,1718729448263,-500.0,0.00019768,2]
[329835468,1718729448272,-500.0,0.00019768,2]
[329835469,1718729448282,-500.0,0.00019768,2]
[329835470,1718729448291,-500.0,0.00019768,2]
[329835471,1718729448300,-500.0,0.00019768,2]
[329835472,1718729448309,-500.0,0.00019768,2]
[329835473,1718729448317,-500.0,0.00019768,2]
[329835474,1718729448326,-573.80270219,0.00019768,2]
[329835475,1718729448336,-507.46232439,0.00019768,2]
[329835476,1718729448345,-530.71672133,0.00019768,2]
[329835477,1718729448354,-206.97584374,0.00019768,2]
[329835478,1718729448363,-503.56077374,0.00019768,2]
[329835479,1718729448372,-6238.89,0.00019769,2]
[329835480,1718729448381,-1025.41306876,0.0001977,2]
[329835481,1718729448390,-151.0,0.0001977,2]
[329835482,1718729448399,-151.0,0.0001977,2]
[329835483,1718729448408,-167.80308,0.0001977,2]
[329835484,1718729448417,-167.80308,0.0001977,2]
[329835485,1718729448426,-205.5620548,0.00019836,2]
[329835486,1718729448435,-205.5620548,0.00019836,2]
[329835487,1718729448445,-1715.91,0.00019858,2]
[329835488,1718729448454,-728.25,0.00019858,2]
[329835489,1718729448463,-587.65,0.00019858,2]
[329835490,1718729448560,-500.0,0.00019858,2]
[329835491,1718729448570,-1173.43,0.00019858,2]
[329835492,1718729448579,-500.0,0.00019858,2]
[329835493,1718729448588,-500.0,0.00019879,2]
[329835494,1718729448597,-151.0,0.0001988,2]
[329835495,1718729448606,-151.0,0.0001988,2]
[329835496,1718729448615,-1320.98,0.0001995,2]
[329835497,1718729448624,-5738.92265785,0.00019984,2]
[329835498,1718729448637,-499.96734215,0.00019984,2]
[329835499,1718729448646,-6238.89,0.00019984,2]
[329835500,1718729448655,-6238.89,0.00019984,2]
[329835501,1718729448664,-6238.89,0.00019984,2]
[329835502,1718729448672,-112868.47643799,0.00019985,2]
[329835503,1718729448685,-27600.0,0.00019985,2]
[329835504,1718729448697,-12223.54818599,0.00019985,2]
[329835505,1718729448706,-500.0,0.00019985,2]
[329835506,1718729448715,-6238.89,0.00019985,2]
[329835507,1718729448725,-6238.89,0.00019985,2]
[329835508,1718729448734,-1044.1,0.00019985,2]
[329835509,1718729448742,-382.15348596,0.00019985,2]
[329835510,1718729448751,-500.0,0.00019986,2]
[329835511,1718729448762,-502.74851618,0.00019986,2]
[329835512,1718729448770,-570.0,0.00019986,2]
[329835513,1718729448778,-500.0,0.00019986,2]
[329835514,1718729448787,-649.13269985,0.00019986,2]
[329835515,1718729448795,-500.0,0.00019986,2]
[329835516,1718729448804,-500.85852151,0.00019986,2]
[329835517,1718729448813,-489.91636001,0.00019986,2]
[329835518,1718729448822,-502.61695077,0.00019986,2]
[329835519,1718729448831,-387.17886139,0.00019986,2]
[329835520,1718729448840,-529.54135484,0.00019986,2]
[329835521,1718729448849,-151.0,0.00019986,2]
[329835522,1718729448858,-209.601166,0.00019986,2]
[329835523,1718729448867,-500.0,0.00019986,2]
[329835524,1718729448876,-500.0,0.00019986,2]
[329835525,1718729448885,-304.3746275,0.00019986,2]
[329835526,1718729448894,-507.04546922,0.00019986,2]
[329835527,1718729448903,-508.38639762,0.00019986,2]
[329835528,1718729448911,-500.0,0.00019986,2]
[329835529,1718729448922,-411.6235829,0.00019986,2]
[329835530,1718729448935,-500.0,0.00019986,2]
[329835531,1718729448944,-500.0,0.00019986,2]
[329835532,1718729448953,-502.24248115,0.00019986,2]
[329835533,1718729448963,-500.0,0.00019986,2]
[329835534,1718729448972,-500.0,0.00019986,2]
[329835535,1718729448982,-500.0,0.00019986,2]
[329835536,1718729448991,-526.25346792,0.00019986,2]
[329835537,1718729449001,-500.0,0.00019986,2]
[329835538,1718729449014,-504.01825391,0.00019986,2]
[329835539,1718729449024,-500.0,0.00019986,2]
[329835540,1718729449033,-512.11720004,0.00019986,2]
[329835541,1718729449047,-500.0,0.00019986,2]
[329835542,1718729449056,-500.0,0.00019986,2]
[329835543,1718729449066,-500.0,0.00019986,2]
[329835544,1718729449075,-190.75463863,0.00019986,2]
[329835545,1718729449084,-502.55385345,0.00019986,2]
[329835546,1718729449093,-502.90286429,0.00019986,2]
[329835547,1718729449103,-500.0,0.00019986,2]
[329835548,1718729449112,-503.39323866,0.00019986,2]
[329835549,1718729449121,-500.0,0.00019986,2]
[329835550,1718729449131,-500.0,0.00019986,2]
[329835551,1718729449140,-501.86105742,0.00019986,2]
[329835552,1718729449149,-500.0,0.00019986,2]
[329835553,1718729449159,-500.0,0.00019986,2]
[329835554,1718729449168,-500.0,0.00019986,2]
[329835555,1718729449178,-183.79379664,0.00019986,2]
[329835556,1718729449187,-500.0,0.00019986,2]
[329835557,1718729449196,-261.7167289,0.00019986,2]
[329835558,1718729449207,-510.16329444,0.00019986,2]
[329835559,1718729449216,-507.29526113,0.00019986,2]
[329835560,1718729449226,-500.0,0.00019986,2]
[329835561,1718729449235,-500.0,0.00019986,2]
[329835562,1718729449244,-500.0,0.00019986,2]
[329835563,1718729449253,-500.0,0.00019986,2]
[329835564,1718729449265,-500.0,0.00019986,2]
[329835565,1718729449274,-508.9991053,0.00019986,2]
[329835566,1718729449283,-540.6,0.00019986,2]
[329835567,1718729449292,-500.0,0.00019986,2]
[329835568,1718729449301,-500.0,0.00019986,2]
[329835569,1718729449310,-500.0,0.00019986,2]
[329835570,1718729449321,-500.0,0.00019986,2]
[329835571,1718729449331,-500.0,0.00019986,2]
[329835572,1718729449340,-501.82453148,0.00019986,2]
[329835573,1718729449349,-500.0,0.00019986,2]
[329835574,1718729449358,-250.0,0.00019986,2]
[329835575,1718729449367,-500.0,0.00019986,2]
[329835576,1718729449377,-506.88308617,0.00019986,2]
[329835577,1718729449387,-500.0,0.00019986,2]
[329835578,1718729449395,-500.0,0.00019986,2]
[329835579,1718729449405,-645.99,0.00019986,2]
[329835580,1718729449415,-559.11993972,0.00019986,2]
[329835581,1718729449424,-500.0,0.00019986,2]
[329835582,1718729449434,-500.0,0.00019986,2]
[329835583,1718729449444,-500.0,0.00019986,2]
[329835584,1718729449454,-387.46620817,0.00019986,2]
[329835585,1718729449463,-500.0,0.00019986,2]
[329835586,1718729449473,-501.29832658,0.00019986,2]
[329835587,1718729449483,-500.0,0.00019986,2]
[329835588,1718729449492,-500.0,0.00019986,2]
[329835589,1718729449502,-511.75979078,0.00019986,2]
[329835590,1718729449514,-500.0,0.00019986,2]
[329835591,1718729449523,-500.0,0.00019986,2]
[329835592,1718729449532,-500.0,0.00019986,2]
[329835593,1718729449542,-501.12919777,0.00019986,2]
[329835594,1718729449551,-500.0,0.00019986,2]
[329835595,1718729449561,-500.0,0.00019986,2]
[329835596,1718729449570,-224.25749796,0.00019986,2]
[329835632,1718730441116,-1407.0296355,0.00014209,2]
[329835633,1718730462546,1844.6185831,0.00013769,2]
[329835634,1718730517142,523.80913391,9.999e-05,2]
[329835635,1718730545166,-3073.70052274,0.00014212,2]
[329835636,1718730545189,-300.0,0.00014212,2]
[329835637,1718730545212,-273.0,0.00014212,2]
[329835638,1718730545233,-3000.0,0.00014213,2]
[329835639,1718730545256,-10091.4063806,0.00014219,2]
[329835640,1718730545279,-250.0,0.00014332,2]
[329835641,1718730545302,-313.174018,0.00014396,2]
[329835642,1718730545329,-1084.0102135,0.00015112,2]
[329835643,1718730545350,-420.0,0.00015633,2]
[329835644,1718730546283,2022.16872289,0.00014211,2]
[329835645,1718730549653,-1649.70345792,0.00014211,2]
[329835646,1718730558095,-813.26771318,0.00016235,2]
[329835647,1718730558118,-13961.30225736,0.00016333,2]
[329835648,1718730558138,-168.74529087,0.00016338,2]
[329835649,1718730558159,-172.67636145,0.00016435,2]
[329835650,1718730558183,-208.55761253,0.00016435,2]
[329835651,1718730558207,-182.87002008,0.00016435,2]
[329835652,1718730558229,-155.09274007,0.00016435,2]
[329835653,1718730558253,-1356.61976056,0.00016436,2]
[329835654,1718730558276,-8249.83379708,0.00016437,2]
[329835655,1718730558297,-500.0,0.00016438,2]
[329835656,1718730558325,-500.0,0.00016438,2]
[329835657,1718730558346,-500.0,0.00016438,2]
[329835658,1718730558371,-500.0,0.00016438,2]
[329835659,1718730558392,-500.0,0.00016438,2]
[329835660,1718730558415,-509.46178003,0.00016438,2]
[329835661,1718730558440,-170.27,0.00016438,2]
[329835662,1718730558460,-500.0,0.00016438,2]
[329835663,1718730558481,-500.0,0.00016438,2]
[329835664,1718730558503,-500.0,0.00016438,2]
[329835665,1718730558525,-500.0,0.00016438,2]
[329835666,1718730558546,-507.82239086,0.00016438,2]
[329835667,1718730558566,-500.0,0.00016438,2]
[329835668,1718730558586,-507.07245,0.00016438,2]
[329835669,1718730558606,-500.0,0.00016438,2]
[329835670,1718730558630,-500.0,0.00016438,2]
[329835671,1718730558650,-500.0,0.00016438,2]
[329835672,1718730558671,-500.0,0.00016438,2]
[329835673,1718730558690,-501.52676042,0.00016438,2]
[329835674,1718730558711,-500.0,0.00016438,2]
[329835675,1718730558731,-500.0,0.00016438,2]
[329835676,1718730558753,-454.15113139,0.00016438,2]
[329835677,1718730558774,-528.72821766,0.00016438,2]
[329835678,1718730558800,-500.0,0.00016438,2]
[329835679,1718730558820,-500.0,0.00016438,2]
[329835680,1718730558840,-500.0,0.00016438,2]
[329835681,1718730558860,-504.579693,0.00016438,2]
[329835682,1718730558884,-500.0,0.00016438,2]
[329835683,1718730558905,-500.0,0.00016438,2]
[329835684,1718730558926,-500.0,0.00016438,2]
[329835685,1718730558946,-421.37,0.00016438,2]
[329835686,1718730558966,-348.89625031,0.00016438,2]
[329835687,1718730558986,-500.0,0.00016438,2]
[329835688,1718730559005,-500.0,0.00016438,2]
[329835689,1718730559026,-500.0,0.00016438,2]
[329835690,1718730559046,-502.10056206,0.00016438,2]
[329835691,1718730559065,-503.68446537,0.00016438,2]
[329835692,1718730559086,-500.0,0.00016438,2]
[329835693,1718730559106,-319.30675189,0.00016438,2]
[329835694,1718730559131,-500.0,0.00016438,2]
[329835695,1718730559151,-510.64483731,0.00016438,2]
[329835696,1718730559172,-500.0,0.00016438,2]
[329835697,1718730559192,-500.0,0.00016438,2]
[329835698,1718730559212,-500.0,0.00016438,2]
[329835699,1718730559232,-503.2236552,0.00016438,2]
[329835700,1718730559252,-500.0,0.00016438,2]
[329835701,1718730559272,-500.0,0.00016438,2]
[329835702,1718730559293,-504.93859245,0.00016438,2]
[329835703,1718730559317,-560.03,0.00016438,2]
[329835704,1718730559337,-500.0,0.00016438,2]
[329835705,1718730559357,-500.0,0.00016438,2]
[329835706,1718730559382,-482.20873011,0.00016438,2]
[329835707,1718730559403,-500.0,0.00016438,2]
[329835708,1718730559423,-500.0,0.00016438,2]
[329835709,1718730559443,-259.39180364,0.00016438,2]
[329835710,1718730559462,-500.0,0.00016438,2]
[329835711,1718730559481,-500.0,0.00016438,2]
[329835712,1718730559501,-519.68818445,0.00016438,2]
[329835713,1718730559522,-500.0,0.00016438,2]
[329835714,1718730559542,-500.0,0.00016438,2]
[329835715,1718730559562,-500.0,0.00016438,2]
[329835716,1718730559582,-503.50638434,0.00016438,2]
[329835717,1718730559601,-246.8733783,0.00016438,2]
[329835718,1718730559624,-268.16710052,0.00016438,2]
[329835719,1718730559644,-500.0,0.00016438,2]
[329835720,1718730559663,-501.66254108,0.00016438,2]
[329835721,1718730559684,-500.0,0.00016438,2]
[329835722,1718730559704,-500.0,0.00016438,2]
[329835723,1718730559725,-500.0,0.00016438,2]
[329835724,1718730559744,-504.40740984,0.00016438,2]
[329835725,1718730559764,-500.0,0.00016438,2]
[329835726,1718730559784,-500.0,0.00016438,2]
[329835727,1718730559804,-500.0,0.00016438,2]
[329835728,1718730559825,-500.0,0.00016438,2]
[329835729,1718730559845,-500.0,0.00016438,2]
[329835730,1718730559872,-1093.28,0.00016438,2]
[329835731,1718730559892,-501.7411033,0.00016438,2]
[329835732,1718730559913,-500.0,0.00016438,2]
[329835733,1718730559934,-500.0,0.00016438,2]
[329835734,1718730559954,-500.0,0.00016438,2]
[329835735,1718730559974,-500.0,0.00016438,2]
[329835736,1718730559995,-500.0,0.00016438,2]
[329835737,1718730560016,-500.0,0.00016438,2]
[329835738,1718730560036,-500.0,0.00016438,2]
[329835739,1718730560057,-501.73618438,0.00016438,2]
[329835740,1718730560076,-500.0,0.00016438,2]
[329835741,1718730560098,-567.49,0.00016438,2]
[329835742,1718730560121,-501.59501721,0.00016438,2]
[329835743,1718730560140,-500.0,0.00016438,2]
[329835744,1718730560160,-500.0,0.00016438,2]
[329835745,1718730560180,-190.159889,0.00016438,2]
[329835746,1718730560201,-516.59986818,0.00016438,2]
[329835747,1718730560221,-500.0,0.00016438,2]
[329835748,1718730560242,-530.14,0.00016438,2]
[329835749,1718730560262,-500.0,0.00016438,2]
[329835750,1718730560281,-500.0,0.00016438,2]
[329835751,1718730560301,-500.0,0.00016438,2]
[329835752,1718730560325,-500.0,0.00016438,2]
[329835753,1718730560346,-500.0,0.00016438,2]
[329835754,1718730560370,-500.0,0.00016438,2]
[329835755,1718730560390,-500.0,0.00016438,2]
[329835756,1718730560418,-500.0,0.00016438,2]
[329835757,1718730560439,-500.0,0.00016438,2]
[329835758,1718730560461,-500.0,0.00016438,2]
[329835759,1718730560483,-500.0,0.00016438,2]
[329835760,1718730560504,-500.0,0.00016438,2]
[329835761,1718730560628,-500.0,0.00016438,2]
[329835762,1718730560650,-500.0,0.00016438,2]
[329835763,1718730560670,-500.0,0.00016438,2]
[329835764,1718730560693,-500.0,0.00016438,2]
[329835765,1718730560717,-500.0,0.00016438,2]
[329835766,1718730560742,-248.01171156,0.00016438,2]
[329835767,1718730560766,-500.0,0.00016438,2]
[329835768,1718730560793,-500.0,0.00016438,2]
[329835769,1718730560816,-500.85971969,0.00016438,2]
[329835770,1718730560838,-500.0,0.00016438,2]
[329835771,1718730560859,-503.6156687,0.00016438,2]
[329835772,1718730560883,-500.0,0.00016438,2]
[329835773,1718730560907,-504.64613082,0.00016438,2]
[329835774,1718730560928,-500.0,0.00016438,2]
[329835775,1718730560951,-1034.21,0.00016438,2]
[329835776,1718730560971,-501.43052701,0.00016438,2]
[329835777,1718730560993,-1052.44,0.00016438,2]
[329835778,1718730561014,-500.0,0.00016438,2]
[329835779,1718730561034,-608.43824242,0.00016438,2]
[329835780,1718730561055,-214.8496273,0.00016438,2]
[329835781,1718730561076,-500.0,0.00016438,2]
[329835782,1718730561097,-500.0,0.00016438,2]
[329835783,1718730561118,-500.0,0.00016438,2]
[329835784,1718730561144,-500.0,0.00016438,2]
[329835785,1718730561166,-520.07627658,0.00016438,2]
[329835786,1718730561186,-500.0,0.00016438,2]
[329835787,1718730561206,-500.0,0.00016438,2]
[329835788,1718730561227,-500.0,0.00016438,2]
[329835789,1718730561248,-500.0,0.00016438,2]
[329835790,1718730561269,-500.0,0.00016438,2]
[329835791,1718730561290,-500.0,0.00016438,2]
[329835792,1718730561311,-500.0,0.00016438,2]
[329835793,1718730561334,-469.96286336,0.00016438,2]
[329835794,1718730561356,-2908.82,0.00016438,2]
[329835795,1718730561382,-500.0,0.00016438,2]
[329835796,1718730561405,-500.0,0.00016438,2]
[329835797,1718730561426,-500.0,0.00016438,2]
[329835798,1718730561446,-500.0,0.00016438,2]
[329835799,1718730561466,-500.0,0.00016438,2]
[329835800,1718730561486,-500.0,0.00016438,2]
[329835801,1718730561507,-500.0,0.00016438,2]
[329835802,1718730561528,-500.0,0.00016438,2]
[329835803,1718730561548,-500.0,0.00016438,2]
[329835804,1718730561568,-500.0,0.00016438,2]
[329835805,1718730561589,-500.0,0.00016438,2]
[329835806,1718730561610,-500.0,0.00016438,2]
[329835807,1718730561635,-500.0,0.00016438,2]
[329835808,1718730561656,-500.0,0.00016438,2]
[329835809,1718730561676,-250.0,0.00016438,2]
[329835810,1718730561698,-500.0,0.00016438,2]
[329835811,1718730561718,-500.0,0.00016438,2]
[329835812,1718730561740,-500.0,0.00016438,2]
[329835813,1718730561760,-500.0,0.00016438,2]
[329835814,1718730561781,-500.0,0.00016438,2]
[329835815,1718730561802,-500.0,0.00016438,2]
[329835816,1718730561822,-500.0,0.00016438,2]
[329835817,1718730561848,-920.49,0.00016438,2]
[329835818,1718730561871,-552.86,0.00016438,2]
[329835819,1718730561891,-502.20492678,0.00016438,2]
[329835820,1718730561911,-500.0,0.00016438,2]
[329835821,1718730561933,-500.0,0.00016438,2]
[329835822,1718730561957,-500.0,0.00016438,2]
[329835823,1718730561978,-500.0,0.00016438,2]
[329835824,1718730562000,-500.0,0.00016438,2]
[329835825,1718730562022,-500.0,0.00016438,2]
[329835826,1718730562043,-500.0,0.00016438,2]
[329835827,1718730562066,-505.07086823,0.00016438,2]
[329835828,1718730562091,-500.0,0.00016438,2]
[329835829,1718730562115,-505.69968282,0.00016438,2]
[329835830,1718730562141,-500.0,0.00016438,2]
[329835831,1718730562163,-500.0,0.00016438,2]
[329835832,1718730562183,-500.0,0.00016438,2]
[329835833,1718730562204,-500.0,0.00016438,2]
[329835834,1718730562224,-500.0,0.00016438,2]
[329835835,1718730562244,-500.0,0.00016438,2]
[329835836,1718730562266,-500.0,0.00016438,2]
[329835837,1718730562286,-500.0,0.00016438,2]
[329835838,1718730562306,-500.0,0.00016438,2]
[329835839,1718730562331,-500.0,0.00016438,2]
[329835840,1718730562352,-500.0,0.00016438,2]
[329835841,1718730562378,-500.0,0.00016438,2]
[329835842,1718730562400,-500.0,0.00016438,2]
[329835843,1718730562422,-500.0,0.00016438,2]
[329835844,1718730562444,-500.0,0.00016438,2]
[329835845,1718730564004,-500.0,0.00016438,2]
[329835846,1718730564029,-500.0,0.00016438,2]
[329835847,1718730564053,-500.0,0.00016438,2]
[329835848,1718730564094,-500.0,0.00016438,2]
[329835849,1718730564121,-2408.02,0.00016438,2]
[329835850,1718730564151,-2408.02,0.00016438,2]
[329835851,1718730564175,-500.0,0.00016438,2]
[329835852,1718730564197,-521.53,0.00016438,2]
[329835853,1718730564217,-500.0,0.00016438,2]
[329835854,1718730564237,-500.0,0.00016438,2]
[329835855,1718730564258,-500.0,0.00016438,2]
[329835856,1718730564280,-2408.02,0.00016711,2]
[329835857,1718730564301,-500.0,0.00016712,2]
[329835858,1718730564326,-500.0,0.00016712,2]
[329835859,1718730564347,-500.0,0.00016712,2]
[329835860,1718730564368,-500.0,0.00016712,2]
[329835861,1718730564394,-257.64746729,0.00016712,2]
[329835862,1718730564418,-171.16,0.00016712,2]
[329835863,1718730564440,-500.0,0.00016712,2]
[329835864,1718730564460,-500.0,0.00016712,2]
[329835865,1718730564481,-500.0,0.00016712,2]
[329835866,1718730564503,-500.0,0.00016712,2]
[329835867,1718730564523,-500.0,0.00016712,2]
[329835868,1718730564544,-199.25,0.00016712,2]
[329835869,1718730564564,-500.0,0.00016712,2]